bitfinex-derivatives/quotes_ETHF0:USTF0_20241231
["timestamp","ask_amount","ask_price","bid_price","bid_amount"]
[1735605479744,0.29916,3348.6,3348.5,0.29916]
[1735605480441,2.10634,3348.8,3348.1,0.8805]
[1735605480842,3.2078,3348.9,3348.8,0.29913]
[1735605481146,0.29915,3348.7,3348.5,0.29915]
[1735605481350,0.29915,3348.7,3348.6,0.29915]
[1735605481646,3.50693,3348.9,3348.8,0.29913]
[1735605483050,0.29913,3348.8,3348.7,0.29914]
[1735605483446,0.29914,3348.8,3348.7,0.29914]
[1735605483750,3.2078,3348.9,3348.2,3.2078]
[1735605483952,3.50693,3348.9,3348.8,0.29913]
[1735605484252,3.2078,3348.9,3348.2,3.2078]
[1735605484451,0.29915,3348.7,3348.6,0.29915]
[1735605485150,3.2078,3348.9,3348.1,0.8805]
[1735605485347,0.29919,3348.2,3348.1,0.8805]
[1735605485749,0.29919,3348.2,3348.1,1.17969]
[1735605486754,0.29919,3348.2,3348.1,0.8805]
[1735605486959,3.2078,3348.4,3347.6,3.2078]
[1735605487258,0.29924,3347.6,3347.5,2.15854]
[1735605487454,0.29924,3347.7,3347.6,0.29924]
[1735605488056,0.29924,3347.6,3347.5,2.15854]
[1735605488753,0.29921,3347.9,3347.8,0.29922]
[1735605488959,0.29924,3347.6,3347.5,2.15854]
[1735605490364,3.2078,3347.9,3347.5,1.8593]
[1735605490567,3.2078,3347.9,3347.8,0.29922]
[1735605491271,3.2078,3347.9,3347.5,1.8593]
[1735605491272,0.29921,3348.0,3347.5,1.8593]
[1735605491475,0.29921,3348.0,3347.9,0.29921]
[1735605493575,3.2078,3348.3,3347.5,1.8593]
[1735605493773,0.2992,3348.1,3348.0,0.2992]
[1735605493976,3.2078,3348.3,3347.5,1.8593]
[1735605494171,0.29923,3347.7,3347.6,0.29923]
[1735605494371,0.74797,3348.2,3347.7,0.29922]
[1735605494372,0.29923,3347.8,3347.7,0.29922]
[1735605495272,0.29924,3347.6,3347.5,2.15855]
[1735605495479,3.2078,3347.9,3347.2,3.2078]
[1735605495669,0.29927,3347.4,3347.3,0.29927]
[1735605496780,0.29927,3347.3,3347.2,0.29927]
[1735605497181,1.7568,3347.8,3347.1,0.9095]
[1735605497375,0.29927,3347.3,3347.2,0.29927]
[1735605498278,2.50488,3347.8,3347.1,0.9095]
[1735605498279,0.29928,3347.2,3347.1,0.9095]
[1735605498575,0.29929,3347.1,3347.0,0.29929]
[1735605498971,3.2078,3347.5,3346.9,40.8]
[1735605499175,0.2993,3346.9,3346.7,1.7787]
[1735605499384,3.07274136,3347.3,3346.7,0.9224]
[1735605499385,0.29931,3346.8,3346.7,0.9224]
[1735605499681,0.2993,3346.9,3346.3,2.09285]
[1735605499880,0.29934,3346.5,3346.4,0.29934]
[1735605500080,0.29932,3346.7,3346.6,0.29933]
[1735605501980,0.29932,3346.7,3346.6,0.29932]
[1735605502175,0.29934,3346.6,3346.5,0.29933]
[1735605502780,0.29933,3346.7,3346.6,0.29933]
[1735605503282,0.29931,3346.8,3346.7,0.29932]
[1735605503983,3.2078,3347.0,3346.9,0.2993]
[1735605504582,1.7927,3347.5,3347.2,0.29928]
[1735605504583,0.46011746,3347.3,3347.2,0.29928]
[1735605504979,0.46011746,3347.4,3347.3,0.29927]
[1735605505170,0.46011746,3347.4,3347.3,2.62384136]
[1735605505378,0.46011746,3347.8,3347.7,0.29923]
[1735605505578,0.29922,3347.8,3347.7,0.29923]
[1735605506082,0.29922,3347.9,3347.8,0.29922]
[1735605506283,0.29922,3347.8,3347.7,0.29923]
[1735605507084,0.29921,3347.9,3347.8,0.29921]
[1735605507581,5.74845,3348.4,3347.5,40.8]
[1735605507582,0.46011746,3348.0,3347.5,40.8]
[1735605507788,0.29923,3347.8,3347.7,0.29923]
[1735605508287,0.29924,3347.6,3347.5,40.8]
[1735605508987,0.29924,3347.6,3347.5,0.29925]
[1735605510281,0.46023687,3347.8,3347.3,40.8]
[1735605510581,0.29923,3347.7,3347.6,0.29923]
[1735605510983,0.75946687,3347.8,3347.4,0.29926]
[1735605511185,0.75946687,3347.8,3347.3,43.12457136]
[1735605511384,0.75963557,3347.8,3347.7,0.29923]
[1735605511682,0.75960557,3348.1,3347.9,0.29921]
[1735605511884,0.75970078,3348.1,3348.0,0.2992]
[1735605512188,0.29921,3348.0,3347.9,0.29921]
[1735605512486,0.29922,3347.9,3347.8,0.29922]
[1735605512990,0.75970078,3348.1,3348.0,0.2992]
[1735605513290,0.2992,3348.0,3347.9,0.29921]
[1735605513590,0.76013645,3348.0,3347.9,0.29921]
[1735605513793,0.2992,3348.0,3347.9,0.29921]
[1735605514185,0.29922,3347.9,3347.8,0.29922]
[1735605514494,0.76013645,3348.1,3347.7,0.8738]
[1735605514792,0.76013645,3348.1,3348.0,0.2992]
[1735605515489,0.46093645,3348.1,3348.0,0.2992]
[1735605515794,0.76012645,3348.2,3348.1,0.29919]
[1735605516099,0.76011645,3348.3,3348.2,0.29919]
[1735605516797,2.31749597,3348.6,3348.5,0.29916]
[1735605516994,2.31749597,3348.6,3348.5,2.62373136]
[1735605517190,2.31749597,3348.6,3348.3,2.749]
[1735605517494,0.29916,3348.5,3348.3,2.13207]
[1735605517892,3.23359597,3348.7,3348.4,40.8]
[1735605518086,2.31749597,3348.7,3348.4,40.8]
[1735605518287,0.92699597,3348.7,3348.6,0.29915]
[1735605518490,0.92699597,3348.7,3348.5,2.32457136]
[1735605518491,4.63499195,3349.0,3348.9,0.29912]
[1735605518791,0.2991,3349.2,3349.0,0.29911]
[1735605518990,0.29911,3349.1,3348.9,0.29912]
[1735605519187,0.9461,3349.2,3348.6,43.12457136]
[1735605519388,4.63499195,3349.4,3348.9,2.32457136]
[1735605519595,4.63499195,3349.4,3349.3,0.29909]
[1735605519796,0.29909,3349.3,3349.1,0.2991]
[1735605520493,0.29909,3349.3,3348.6,45.4803085]
[1735605520798,0.29908,3349.4,3349.2,0.2991]
[1735605521196,1.24516,3349.6,3349.5,0.29907]
[1735605521492,0.29907,3349.5,3349.2,0.29909]
[1735605521693,0.29909,3349.3,3348.8,3.2078]
[1735605521891,0.29908,3349.5,3348.8,3.2078]
[1735605522092,0.9461,3349.6,3349.5,0.29907]
[1735605522291,3.2078,3349.7,3349.6,0.29906]
[1735605522597,1.21245,3349.8,3349.6,0.29906]
[1735605523094,0.8481,3349.9,3349.2,5.3075]
[1735605523292,0.9134,3350.3,3349.6,3.2078]
[1735605523493,0.29901,3350.2,3349.6,3.2078]
[1735605523688,1.21241,3350.3,3350.1,0.29901]
[1735605523892,0.29901,3350.2,3349.9,0.29903]
[1735605524199,0.29901,3350.2,3350.0,0.29902]
[1735605524894,0.9134,3350.3,3349.6,3.2078]
[1735605524895,0.299,3350.3,3350.1,0.29901]
[1735605525191,0.299,3350.3,3349.6,3.2078]
[1735605525192,0.29901,3350.2,3349.7,0.29905]
[1735605525394,3.2078,3350.5,3350.1,0.29901]
[1735605525395,0.299,3350.3,3350.1,0.29901]
[1735605525894,0.299,3350.3,3350.2,0.29901]
[1735605526390,0.299,3350.3,3350.1,0.29901]
[1735605526585,0.29901,3350.2,3350.0,0.29902]
[1735605526789,0.29901,3350.2,3349.6,3.2078]
[1735605526988,0.29901,3350.2,3350.1,0.29902]
[1735605527391,0.8504,3350.4,3350.2,0.299]
[1735605527792,1.14939,3350.4,3350.2,0.299]
[1735605527987,0.299,3350.3,3350.2,0.299]
[1735605528389,0.299,3350.3,3349.6,3.2078]
[1735605528795,0.29901,3350.2,3350.1,0.29902]
[1735605529900,0.8504,3350.4,3349.6,3.2078]
[1735605530101,0.29902,3350.1,3349.6,3.2078]
[1735605530300,0.29902,3350.1,3349.9,0.29903]
[1735605531210,1.7245,3350.4,3349.8,0.29904]
[1735605531396,0.29904,3349.8,3349.6,0.29905]
[1735605531591,3.2078,3350.1,3349.2,4.0855]
[1735605531592,3.95535,3350.1,3349.2,4.0855]
[1735605531796,0.29908,3349.4,3349.3,0.29908]
[1735605532096,0.8372,3349.7,3349.2,4.0855]
[1735605532302,0.29906,3349.6,3349.5,0.29906]
[1735605532500,3.2078,3350.1,3349.3,2.8587569]
[1735605532698,0.29901,3350.2,3350.0,0.29902]
[1735605533098,0.29901,3350.2,3349.5,0.74768]
[1735605533397,0.8741,3350.4,3349.6,3.2078]
[1735605533598,0.8741,3350.4,3349.7,0.74764]
[1735605533896,3.50679,3350.5,3350.4,0.29899]
[1735605534101,3.2078,3350.5,3350.4,0.29899]
[1735605534601,0.8987,3350.7,3350.6,0.29897]
[1735605534806,3.2078,3351.0,3350.9,0.29894]
[1735605535201,0.29895,3350.9,3350.4,0.29899]
[1735605535407,3.2078,3351.0,3350.2,3.2078]
[1735605535699,0.29897,3350.7,3350.2,3.2078]
[1735605536006,0.29896,3350.8,3350.6,0.29897]
[1735605536501,0.29896,3350.8,3350.2,3.2078]
[1735605536502,3.2078,3351.0,3350.2,3.2078]
[1735605536800,0.29897,3350.7,3350.5,0.29898]
[1735605537006,3.2078,3351.0,3350.5,0.29898]
[1735605537207,0.29897,3350.6,3350.5,0.29898]
[1735605538812,0.29897,3350.6,3350.1,2.8587569]
[1735605539105,0.9226,3350.5,3350.4,0.29898]
[1735605539299,0.9226,3350.5,3350.0,3.2078]
[1735605539607,0.9226,3350.5,3342.9,0.12535428]
[1735605539608,0.29905,3349.7,3349.6,3.2078]
[1735605539810,3.95542,3349.8,3348.9,4.677298]
[1735605540005,0.2991,3349.2,3349.0,0.29911]
[1735605540309,0.2991,3349.2,3348.8,10.73380391]
[1735605540310,0.8588,3349.6,3348.8,3.7178569]
[1735605540607,0.8588,3349.6,3348.9,0.74782]
[1735605540811,0.8588,3349.6,3349.5,0.29907]
[1735605542412,1.15786,3349.6,3349.5,0.29907]
[1735605545109,1.15786,3349.6,3349.2,2.32202211]
[1735605545110,0.8588,3349.6,3349.2,2.32202211]
[1735605545309,1.15787,3349.6,3349.5,0.29907]
[1735605546515,1.15787,3349.6,3349.2,2.32202211]
[1735605546516,1.38645916,3349.7,3349.6,0.29906]
[1735605546709,1.22475,3349.7,3349.6,0.29906]
[1735605547711,1.22475,3349.7,3349.5,0.29906]
[1735605548015,0.29909,3349.3,3349.2,0.29909]
[1735605548511,0.76031066,3349.4,3349.3,0.29909]
[1735605548912,0.29911,3349.1,3349.0,0.29911]
[1735605549215,0.2991,3349.2,3349.1,0.2991]
[1735605550504,0.46119614,3349.3,3349.2,0.2991]
[1735605550709,0.76026614,3349.5,3349.4,0.29908]
[1735605550918,0.46119614,3349.5,3349.4,0.29908]
[1735605551121,0.4612757,3349.6,3349.3,0.29909]
[1735605551415,0.4612757,3349.6,3349.5,0.29907]
[1735605551614,0.7603357,3349.6,3349.5,0.29907]
[1735605552017,0.4612757,3349.6,3349.5,0.29907]
[1735605553014,0.4612757,3349.6,3349.5,2.62109211]
[1735605553314,3.2078,3350.4,3349.5,2.32202211]
[1735605553520,0.9242,3350.0,3349.4,1.227]
[1735605553822,0.299,3350.3,3350.2,0.299]
[1735605554206,3.2078,3350.4,3349.8,2.32202211]
[1735605554412,0.29901,3350.2,3350.1,0.29901]
[1735605555312,0.7475,3350.3,3349.4,1.227]
[1735605555508,3.2078,3350.0,3349.4,1.227]
[1735605555713,0.29906,3349.7,3349.4,1.227]
[1735605556421,0.29906,3349.7,3349.6,0.29906]
[1735605556620,1.7844,3349.9,3349.4,1.227]
[1735605556814,0.29905,3349.8,3349.7,0.29905]
[1735605557015,0.29906,3349.7,3349.5,0.29907]
[1735605557518,0.29905,3349.8,3349.7,0.29905]
[1735605558316,0.29906,3349.6,3349.5,0.29907]
[1735605558819,1.7844,3349.9,3349.4,1.227]
[1735605559020,0.29906,3349.7,3349.6,0.29906]
[1735605559221,1.7844,3349.9,3349.4,1.227]
[1735605559619,3.2078,3350.0,3349.8,2.32202211]
[1735605559924,3.2078,3350.4,3350.3,0.299]
[1735605560124,3.50679,3350.4,3350.3,0.299]
[1735605561721,0.8391,3350.7,3350.0,40.8]
[1735605562015,0.29899,3350.4,3350.3,0.29899]
[1735605562816,0.29898,3350.5,3350.4,0.29899]
[1735605563621,0.8391,3350.7,3349.9,0.889]
[1735605563929,1.13807,3350.7,3350.6,0.29897]
[1735605564121,1.13807,3350.7,3350.4,0.29899]
[1735605564122,0.29899,3350.5,3350.4,0.29899]
[1735605564426,0.29898,3350.6,3350.5,0.29898]
[1735605564628,1.13807,3350.7,3350.6,0.29897]
[1735605565227,1.13807,3350.7,3350.0,4.677298]
[1735605565228,0.8391,3350.7,3350.0,4.677298]
[1735605565425,3.2078,3350.4,3350.0,4.677298]
[1735605565625,0.29902,3350.1,3350.0,4.976318]
[1735605565827,0.8901,3350.3,3350.0,4.677298]
[1735605566024,1.1891,3350.3,3350.2,0.29901]
[1735605567929,0.29901,3350.2,3350.1,0.29901]
[1735605569328,1.1891,3350.3,3350.2,0.29901]
[1735605571228,0.8901,3350.3,3350.2,0.29901]
[1735605574335,0.8391,3350.7,3350.6,0.29897]
[1735605575938,1.13806,3350.7,3350.6,0.29897]
[1735605576448,0.8391,3350.7,3350.1,3.2078]
[1735605576648,0.29901,3350.2,3350.1,8.184108]
[1735605576848,0.29898,3350.5,3350.4,0.29898]
[1735605577646,1.13807,3350.7,3350.6,0.29897]
[1735605579050,0.8391,3350.7,3350.6,0.29897]
[1735605579255,3.50675,3350.9,3350.8,0.29895]
[1735605580157,4.63036585,3351.1,3350.5,0.8536]
[1735605580349,4.63036585,3351.1,3351.0,0.29894]
[1735605580550,4.63036585,3351.1,3350.5,1.417]
[1735605580551,0.29894,3351.0,3350.9,0.29894]
[1735605581659,0.29895,3350.9,3350.8,0.29895]
[1735605581961,3.2078,3351.0,3350.5,0.8536]
[1735605582158,0.29896,3350.8,3350.5,0.8536]
[1735605582453,0.29896,3350.8,3350.7,0.29896]
[1735605582852,0.29896,3350.7,3350.6,0.29897]
[1735605583759,3.95515,3351.0,3350.3,4.677298]
[1735605584052,0.29899,3350.4,3350.3,4.976298]
[1735605584652,0.29899,3350.4,3350.3,0.299]
[1735605585058,2.06929,3350.5,3350.4,0.29899]
[1735605586151,1.7703,3350.5,3350.1,3.2078]
[1735605586359,0.29901,3350.2,3350.1,3.50681]
[1735605587161,0.29901,3350.2,3350.1,0.29901]
[1735605589162,0.299,3350.3,3350.2,0.299]
[1735605590254,0.29901,3350.2,3350.1,0.29901]
[1735605590955,0.299,3350.3,3350.2,0.299]
[1735605593456,1.7703,3350.5,3350.4,0.29899]
[1735605593663,1.7703,3350.5,3350.1,2.32202211]
[1735605593664,0.299,3350.3,3350.0,0.29902]
[1735605593870,0.299,3350.3,3350.2,0.29901]
[1735605594761,1.7703,3350.5,3349.9,4.677298]
[1735605594966,0.299,3350.4,3350.3,0.29899]
[1735605596263,2.06929,3350.5,3350.4,0.29899]
[1735605597767,0.299,3350.3,3350.2,4.677298]
[1735605598764,0.299,3350.3,3350.2,4.976308]
[1735605599159,0.299,3350.3,3350.2,0.29901]
[1735605599665,1.7703,3350.5,3350.0,4.677298]
[1735605599867,0.299,3350.3,3350.2,0.299]
[1735605606471,0.299,3350.3,3350.2,4.976298]
[1735605608268,5.25843585,3350.5,3350.2,4.677298]
[1735605608568,3.48813585,3350.5,3350.4,2.62101211]
[1735605608770,3.48813585,3350.5,3350.4,0.29899]
[1735605609168,6.69593585,3350.6,3350.5,0.29898]
[1735605609364,2.11403585,3350.6,3350.5,0.29898]
[1735605609564,4.13471292,3350.8,3350.5,0.5635]
[1735605609766,3.81171292,3350.8,3350.7,2.62098211]
[1735605610766,3.81171292,3350.8,3350.7,43.42098211]
[1735605610964,0.8507,3351.5,3351.4,0.2989]
[1735605611774,3.50666,3351.9,3351.8,0.29886]
[1735605611775,3.2078,3351.9,3351.8,0.29886]
[1735605612169,6.67142134,3352.1,3351.7,2.32202211]
[1735605612170,5.79672134,3352.1,3351.7,2.32202211]
[1735605612369,0.29882,3352.3,3352.1,0.29883]
[1735605612572,4.8956,3352.4,3352.3,0.29882]
[1735605612774,4.0585,3352.4,3352.3,0.29882]
[1735605612969,4.0585,3352.4,3352.0,2.32202211]
[1735605612970,0.8507,3352.4,3352.0,2.32202211]
[1735605613170,0.29883,3352.2,3352.0,2.32202211]
[1735605613374,0.8507,3352.4,3352.3,0.29882]
[1735605613575,0.8507,3352.4,3352.1,2.32202211]
[1735605613576,0.29883,3352.3,3352.1,2.32202211]
[1735605613871,0.8507,3352.4,3352.1,2.32202211]
[1735605614076,0.29883,3352.2,3352.1,2.32202211]
[1735605615673,0.8507,3352.4,3352.1,2.32202211]
[1735605615867,0.29882,3352.3,3352.1,2.32202211]
[1735605616067,1.14952,3352.4,3352.1,0.29883]
[1735605616273,0.29882,3352.3,3352.1,0.29883]
[1735605616470,0.887,3352.8,3352.2,40.8]
[1735605616773,1.18578,3352.8,3352.5,0.2988]
[1735605616972,0.29879,3352.7,3352.5,0.2988]
[1735605617166,0.887,3352.8,3352.6,0.29879]
[1735605617366,0.887,3352.8,3352.7,0.29878]
[1735605617967,1.18578,3352.8,3352.6,0.29879]
[1735605618167,0.887,3352.8,3352.5,3.2078]
[1735605618365,0.887,3352.8,3352.7,0.29878]
[1735605618569,1.18578,3352.8,3352.6,0.29879]
[1735605618871,0.887,3352.8,3352.7,0.29878]
[1735605620167,0.887,3352.8,3352.5,3.2078]
[1735605620373,0.887,3352.8,3352.1,4.69508871]
[1735605620374,0.29879,3352.7,3352.1,7.90288871]
[1735605620571,0.29879,3352.7,3352.4,0.2988]
[1735605621278,0.29879,3352.7,3352.6,0.29879]
[1735605621973,0.887,3352.8,3352.6,0.29879]
[1735605622376,0.29879,3352.7,3352.5,0.2988]
[1735605622675,0.29879,3352.7,3352.1,3.2078]
[1735605622676,0.29883,3352.2,3352.1,3.2078]
[1735605623176,0.29883,3352.2,3351.6,1.212]
[1735605623177,0.29883,3352.2,3352.0,0.29884]
[1735605623382,2.6448,3352.1,3352.0,0.29884]
[1735605624776,0.29886,3351.9,3351.7,3.50666]
[1735605624979,0.29886,3351.9,3351.7,0.29886]
[1735605625579,2.6448,3352.1,3351.5,40.8]
[1735605625782,3.2078,3352.0,3351.1,9.11488871]
[1735605625982,3.2078,3352.0,3351.3,2.32202211]
[1735605626178,3.2078,3352.0,3351.7,0.29887]
[1735605626179,0.29886,3351.9,3351.7,0.29887]
[1735605628284,0.29886,3351.9,3351.4,40.8]
[1735605628483,0.29886,3351.9,3351.7,0.29887]
[1735605629183,0.29886,3351.9,3351.4,40.8]
[1735605629380,2.6448,3352.1,3352.0,0.29885]
[1735605629880,1.7301,3352.1,3352.0,0.29885]
[1735605631486,1.7301,3352.1,3351.1,1.212]
[1735605631487,0.74712,3352.0,3351.2,4.69508871]
[1735605631782,2.62093211,3351.3,3351.2,4.69508871]
[1735605632082,2.62093211,3351.3,3351.1,6.05622178]
[1735605632083,0.29892,3351.2,3351.1,6.05622178]
[1735605633283,2.32202211,3351.3,3350.4,1.212]
[1735605633479,2.32202211,3351.3,3350.8,0.29895]
[1735605633683,0.29894,3350.9,3350.8,0.29895]
[1735605634385,5.52982211,3351.0,3350.4,1.212]
[1735605634582,0.299,3350.3,3350.1,3.50681]
[1735605635180,0.299,3350.4,3350.2,0.299]
[1735605635385,3.2078,3350.6,3350.0,0.8513]
[1735605635386,0.299,3350.3,3350.0,0.8513]
[1735605635589,0.29902,3350.1,3350.0,0.8513]
[1735605636378,0.29902,3350.1,3349.7,0.8853]
[1735605636379,2.32202211,3350.4,3349.7,0.8853]
[1735605636576,0.29904,3349.8,3349.6,4.1124]
[1735605636782,5.52982211,3350.1,3349.6,4.1124]
[1735605636783,0.29905,3349.7,3349.6,4.1124]
[1735605636984,0.29905,3349.7,3349.6,4.41146]
[1735605637382,0.29905,3349.8,3349.6,4.41146]
[1735605637791,0.29905,3349.8,3349.7,0.29905]
[1735605637996,5.52982211,3350.1,3349.6,4.1124]
[1735605638289,2.32202211,3349.8,3349.4,40.8]
[1735605638483,0.29907,3349.5,3349.3,0.29908]
[1735605638883,1.6861,3349.7,3349.3,40.8]
[1735605639091,1.98516,3349.7,3349.5,0.29907]
[1735605643389,4.8939,3349.7,3349.3,40.8]
[1735605643694,2.32202211,3349.6,3348.7,3.2078]
[1735605643897,5.52982211,3349.3,3348.5,0.9086]
[1735605644101,0.29913,3348.9,3348.7,0.29914]
[1735605644394,0.29912,3349.0,3348.8,0.29913]
[1735605644796,5.52982211,3349.3,3348.8,0.29912]
[1735605644996,0.29912,3349.0,3348.6,40.8]
[1735605645192,0.29911,3349.1,3348.9,0.29912]
[1735605646899,0.29911,3349.1,3348.6,40.8]
[1735605647296,0.29911,3349.1,3348.9,0.29912]
[1735605647501,0.29911,3349.0,3348.9,0.29912]
[1735605647799,0.29911,3349.0,3348.6,40.8]
[1735605647800,0.29911,3349.1,3348.6,40.8]
[1735605647998,0.29911,3349.1,3348.9,0.29912]
[1735605648199,0.29911,3349.1,3348.6,40.8]
[1735605648200,0.29911,3349.1,3348.7,0.29914]
[1735605648506,0.29911,3349.1,3348.6,40.8]
[1735605648507,0.29911,3349.1,3348.9,0.29912]
[1735605648796,0.29911,3349.1,3349.0,0.29911]
[1735605649003,0.29911,3349.1,3348.9,0.29912]
[1735605652599,3.2078,3349.3,3348.6,44.0078]
[1735605652799,3.2078,3349.3,3349.2,0.2991]
[1735605653399,3.50689,3349.3,3349.2,0.2991]
[1735605654799,3.2078,3349.3,3349.1,0.2991]
[1735605655009,0.2991,3349.2,3349.1,0.2991]
[1735605655304,0.2991,3349.2,3349.0,0.29911]
[1735605655504,3.2078,3349.3,3349.0,0.29911]
[1735605655807,0.29911,3349.1,3349.0,0.29911]
[1735605656006,0.29913,3348.9,3348.7,0.29914]
[1735605656302,0.29913,3348.9,3348.8,0.29913]
[1735605656505,0.29914,3348.8,3348.7,0.29914]
[1735605657204,0.853,3349.0,3348.6,44.0078]
[1735605657503,0.29915,3348.7,3348.6,0.29915]
[1735605658207,0.29915,3348.6,3348.5,1.20776]
[1735605658902,0.29918,3348.3,3348.2,3.50698]
[1735605659107,2.32202211,3348.7,3347.8,1.213]
[1735605659108,3.2078,3348.4,3348.1,0.8957]
[1735605659311,0.29919,3348.2,3348.1,1.19489]
[1735605660704,0.8461,3348.3,3348.1,0.8957]
[1735605660912,1.14528,3348.3,3348.2,0.29919]
[1735605662204,0.8461,3348.3,3348.1,0.8957]
[1735605662402,0.8461,3348.3,3348.2,0.29919]
[1735605662403,1.14528,3348.3,3348.2,0.29919]
[1735605663008,4.1032,3348.8,3348.1,4.1035]
[1735605663212,3.2078,3348.8,3348.7,0.29914]
[1735605663917,3.2078,3348.8,3348.7,40.8]
[1735605663918,3.50693,3348.8,3348.7,40.8]
[1735605665113,0.29919,3348.2,3348.1,3.50699]
[1735605665716,0.29922,3347.8,3347.7,0.891]
[1735605665917,0.29924,3347.6,3347.5,0.29925]
[1735605666820,0.29924,3347.7,3347.5,0.29925]
[1735605667318,0.29924,3347.7,3347.2,0.891]
[1735605667319,3.2078,3347.8,3347.4,0.29925]
[1735605667510,3.2078,3347.8,3347.2,0.891]
[1735605667712,3.2078,3347.8,3347.7,0.29923]
[1735605667912,3.2078,3348.3,3347.7,1.213]
[1735605668111,0.8244,3348.8,3348.0,2.32202211]
[1735605668417,1.12354,3348.8,3348.7,0.29914]
[1735605668616,1.8007,3349.2,3349.1,0.29911]
[1735605668912,3.2078,3349.5,3349.4,0.29908]
[1735605669315,4.0975,3350.0,3349.2,5.52982211]
[1735605669514,4.0975,3350.0,3349.2,6.27756211]
[1735605669714,4.39653,3350.0,3349.8,0.29904]
[1735605670316,0.29903,3349.9,3349.8,0.29904]
[1735605670510,6.41952211,3350.0,3349.2,3.2078]
[1735605670716,0.29904,3349.9,3349.7,0.29905]
[1735605672217,6.41952211,3350.0,3349.2,3.2078]
[1735605672419,6.71855211,3350.0,3349.8,0.29904]
[1735605673110,0.29904,3349.9,3349.3,0.29909]
[1735605673316,0.29904,3349.9,3349.2,3.2078]
[1735605673317,0.29904,3349.8,3349.6,0.29906]
[1735605673820,0.29904,3349.8,3349.2,3.2078]
[1735605673821,6.41952211,3350.0,3349.2,3.2078]
[1735605674022,0.29904,3349.9,3349.7,0.29905]
[1735605674824,0.29904,3349.8,3349.2,3.2078]
[1735605675024,0.29904,3349.8,3349.6,0.29906]
[1735605675422,6.41952211,3350.0,3349.2,3.2078]
[1735605675623,0.29904,3349.9,3349.7,0.29905]
[1735605676521,6.41952211,3350.0,3349.2,3.2078]
[1735605676721,0.29905,3349.8,3349.6,0.29906]
[1735605678220,6.41952211,3350.0,3349.2,3.2078]
[1735605678527,4.0975,3350.0,3349.9,0.29903]
[1735605678821,3.2078,3350.0,3349.2,5.52982211]
[1735605679016,4.0501,3350.0,3349.6,0.29905]
[1735605679226,0.29905,3349.8,3349.6,0.29905]
[1735605680125,0.29905,3349.8,3349.3,40.8]
[1735605680126,4.0501,3350.0,3349.9,0.29903]
[1735605680425,4.34913,3350.0,3349.8,0.29904]
[1735605680621,0.29903,3349.9,3349.8,0.29904]
[1735605683626,3.50683,3350.0,3349.9,0.29903]
[1735605683831,3.2078,3350.0,3349.9,0.29903]
[1735605684928,0.29901,3350.2,3350.1,0.29901]
[1735605686227,0.911,3350.3,3350.2,0.29901]
[1735605687119,1.639,3350.8,3350.1,2.32202211]
[1735605687120,4.8468,3350.8,3350.1,2.32202211]
[1735605687317,4.8468,3350.8,3350.7,0.29896]
[1735605687521,0.7882,3350.9,3350.8,0.29895]
[1735605688429,1.08714,3350.9,3350.8,0.29895]
[1735605688725,2.31193559,3351.1,3350.7,2.32202211]
[1735605689027,2.31193559,3351.1,3351.0,0.29894]
[1735605689721,3.90202211,3351.9,3351.7,0.29887]
[1735605689722,3.2078,3351.8,3351.7,0.29887]
[1735605689927,2.31193559,3351.9,3351.8,0.29886]
[1735605690124,2.31193559,3351.9,3351.8,4.28796]
[1735605690324,1.04523559,3351.9,3351.8,9.28796]
[1735605690532,3.46391789,3352.0,3351.9,2.62088211]
[1735605690533,0.52345348,3352.0,3351.9,2.62088211]
[1735605691028,0.52345348,3352.0,3351.9,43.42088211]
[1735605691425,0.29878,3352.7,3351.9,43.42088211]
[1735605691727,2.32202211,3353.2,3351.9,43.42088211]
[1735605692024,3.92112211,3352.9,3351.9,43.12202211]
[1735605692230,0.29884,3352.1,3351.9,40.8]
[1735605692425,0.29883,3352.2,3352.0,0.29885]
[1735605693022,0.29884,3352.1,3351.9,0.29885]
[1735605693426,0.7791,3352.5,3351.8,3.2078]
[1735605693933,0.29885,3352.0,3351.8,3.50666]
[1735605694527,0.7791,3352.5,3351.8,3.50666]
[1735605694528,0.29886,3351.9,3351.8,3.2078]
[1735605694731,0.29886,3351.9,3351.7,0.29887]
[1735605695434,0.29885,3352.0,3351.8,0.29886]
[1735605696534,0.7987,3352.1,3351.6,2.32202211]
[1735605696733,3.2078,3352.2,3351.9,2.32202211]
[1735605696926,3.2078,3352.2,3352.1,0.29884]
[1735605697126,0.29882,3352.4,3352.2,0.29882]
[1735605697325,0.7791,3352.5,3352.2,2.32202211]
[1735605697522,3.2078,3352.6,3352.2,2.32202211]
[1735605697523,3.2078,3352.6,3352.5,0.2988]
[1735605697725,3.2078,3352.6,3352.5,2.62082211]
[1735605698133,3.2078,3353.1,3352.5,2.32202211]
[1735605698324,1.07861,3353.5,3353.0,2.32202211]
[1735605698529,0.29873,3353.4,3353.2,0.29874]
[1735605698724,0.29873,3353.4,3353.1,0.29874]
[1735605698925,0.29873,3353.4,3353.2,0.29874]
[1735605699227,0.29874,3353.2,3353.0,0.29875]
[1735605699431,0.29874,3353.3,3353.0,0.29875]
[1735605699633,0.7799,3353.5,3352.9,3.2078]
[1735605699831,1.07862,3353.5,3353.2,0.29873]
[1735605700529,0.7799,3353.5,3353.2,0.29873]
[1735605700831,0.29873,3353.4,3352.9,3.2078]
[1735605701132,0.29873,3353.4,3353.2,0.29874]
[1735605701433,0.7799,3353.5,3352.9,3.2078]